fUSD/lending_fUSD_20251129
["ID","MTS","AMOUNT","RATE_DAILY","PERIOD"]
[395118999,1764456641199,-500.0,0.00015973,2]
[395119000,1764456641208,-500.0,0.00015973,2]
[395119001,1764456641216,-500.0,0.00015973,2]
[395119002,1764456641225,-500.0,0.00015973,2]
[395119003,1764456641235,-500.0,0.00015973,2]
[395119004,1764456641243,-193.03771092,0.00015973,2]
[395119005,1764456641254,-500.0,0.00015973,2]
[395119006,1764456641263,-622.41255856,0.00015973,2]
[395119007,1764456641272,-500.0,0.00015973,2]
[395119008,1764456641281,-500.0,0.00015973,2]
[395119009,1764456641290,-500.0,0.00015973,2]
[395119010,1764456641299,-500.0,0.00015973,2]
[395119011,1764456641308,-215.65703164,0.00015973,2]
[395119012,1764456641319,-150.0,0.00015995,2]
[395119013,1764456641330,-150.0,0.00016016,2]
[395119014,1764456641343,-150.0,0.00016043,2]
[395119015,1764456641352,-664.0,0.00016066,2]
[395119016,1764456641361,-500.0,0.00016066,2]
[395119017,1764456641371,-420.0,0.00016098,2]
[395119018,1764456641380,-195.0,0.00016099,2]
[395119019,1764456641389,-510.37,0.00016116,2]
[395119020,1764456641398,-150.99,0.00016116,2]
[395119021,1764456641409,-9999.99,0.00016116,2]
[395119022,1764456641418,-2954.1,0.00016116,2]
[395119023,1764456641427,-999.99,0.00016116,2]
[395119024,1764456641436,-499.99,0.00016116,2]
[395119025,1764456641445,-113674.39,0.00016116,2]
[395119026,1764456641454,-150.99,0.00016116,2]
[395119027,1764456641463,-9999.99,0.00016116,2]
[395119028,1764456641472,-6214.9,0.00016116,2]
[395119029,1764456641481,-9999.99,0.00016116,2]
[395119030,1764456641490,-5003.9,0.00016116,2]
[395119031,1764456641500,-7704.66,0.00016116,2]
[395119032,1764456641508,-4993.69,0.00016116,2]
[395119033,1764456641518,-9999.99,0.00016116,2]
[395119034,1764456641527,-1114.06,0.00016116,2]
[395119035,1764456641537,-299.99,0.00016116,4]
[395119036,1764456641546,-1539.04,0.00016116,2]
[395119037,1764456641555,-2530.78,0.00016116,2]
[395119038,1764456641564,-998.25,0.00016119,2]
[395119039,1764456641574,-182.96,0.00016129,2]
[395119040,1764456641583,-150.0,0.00016137,2]
[395119041,1764456641593,-150.0,0.00016137,2]
[395119042,1764456641601,-150.0,0.00016137,2]
[395119043,1764456641611,-150.0,0.00016137,2]
[395119044,1764456641620,-150.0,0.00016137,2]
[395119045,1764456641630,-166.66,0.0001614,2]
[395119046,1764456641639,-322.6107,0.00016149,2]
[395119047,1764456641647,-578.20924308,0.00016149,2]
[395119048,1764456641657,-250.0,0.00016149,2]
[395119049,1764456641666,-1000.0,0.00016149,2]
[395119050,1764456641676,-162.9203721,0.00016149,2]
[395119051,1764456641685,-250.0,0.00016149,2]
[395119052,1764456641695,-250.0,0.00016149,2]
[395119053,1764456641704,-500.0,0.00016149,2]
[395119054,1764456641714,-1000.0,0.00016149,2]
[395119055,1764456641723,-8000.0,0.00016149,2]
[395119056,1764456641733,-250.0,0.00016149,2]
[395119057,1764456641742,-250.0,0.00016149,2]
[395119058,1764456641751,-500.0,0.00016149,2]
[395119059,1764456641760,-1000.0,0.00016149,2]
[395119060,1764456641770,-5266.04146241,0.00016149,2]
[395119061,1764456641779,-341.62430709,0.00016149,2]
[395119062,1764456641788,-250.0,0.00016149,2]
[395119063,1764456641798,-1000.0,0.00016149,2]
[395119064,1764456641808,-500.0,0.00016149,2]
[395119065,1764456641818,-250.0,0.00016149,2]
[395119066,1764456641827,-1000.0,0.00016149,2]
[395119067,1764456641838,-250.0,0.00016149,2]
[395119068,1764456641847,-537.96447722,0.00016149,2]
[395119069,1764456641857,-1000.0,0.00016149,2]
[395119070,1764456641866,-250.0,0.00016149,2]
[395119071,1764456641877,-1000.0,0.00016149,2]
[395119072,1764456641886,-161.0,0.00016149,2]
[395119073,1764456641895,-1000.0,0.00016149,2]
[395119074,1764456641904,-1000.0,0.00016149,2]
[395119075,1764456641913,-553.64373807,0.00016149,2]
[395119076,1764456641922,-1000.0,0.00016149,2]
[395119077,1764456641931,-1000.0,0.00016149,2]
[395119078,1764456641940,-1000.0,0.00016149,2]
[395119079,1764456641952,-1000.0,0.00016149,2]
[395119080,1764456641961,-343.79381622,0.00016149,2]
[395119081,1764456641970,-374.41027667,0.00016149,2]
[395119082,1764456641979,-620.0,0.00016149,2]
[395119083,1764456641988,-690.95555639,0.00016149,2]
[395119084,1764456641997,-267.46074303,0.00016149,2]
[395119085,1764456642006,-250.0,0.00016149,2]
[395119086,1764456642015,-250.0,0.00016149,2]
[395119087,1764456642024,-250.0,0.00016149,2]
[395119088,1764456642033,-250.0,0.00016149,2]
[395119089,1764456642042,-250.0,0.00016149,2]
[395119090,1764456642052,-250.0,0.00016149,2]
[395119091,1764456642062,-250.0,0.00016149,2]
[395119092,1764456642072,-250.0,0.00016149,2]
[395119093,1764456642081,-151.0,0.00016149,2]
[395119094,1764456642091,-201.71198878,0.00016149,2]
[395119095,1764456642100,-151.0,0.00016149,2]
[395119096,1764456642110,-1000.0,0.00016149,2]
[395119097,1764456642118,-151.0,0.00016149,2]
[395119098,1764456642127,-1000.0,0.00016149,2]
[395119099,1764456642136,-151.0,0.00016149,2]
[395119100,1764456642146,-1000.0,0.00016149,2]
[395119101,1764456642155,-151.0,0.00016149,2]
[395119102,1764456642164,-1000.0,0.00016149,2]
[395119103,1764456642175,-151.0,0.00016149,2]
[395119104,1764456642186,-1000.0,0.00016149,2]
[395119105,1764456642196,-151.0,0.00016149,2]
[395119106,1764456642205,-1000.0,0.00016149,2]
[395119107,1764456642215,-151.0,0.00016149,2]
[395119108,1764456642227,-1000.0,0.00016149,2]
[395119109,1764456642237,-151.0,0.00016149,2]
[395119110,1764456642247,-300.0,0.00016149,2]
[395119111,1764456642257,-1000.0,0.00016149,2]
[395119112,1764456642267,-151.0,0.00016149,2]
[395119113,1764456642277,-1000.0,0.00016149,2]
[395119114,1764456642286,-151.0,0.00016149,2]
[395119115,1764456642295,-327.76582673,0.00016149,2]
[395119116,1764456642304,-151.0,0.00016149,2]
[395119117,1764456642315,-250.0,0.00016168,2]
[395119118,1764456642324,-250.0,0.00016168,2]
[395119119,1764456642338,-1680.0,0.00016174,2]
[395119120,1764456642347,-150.32875877,0.00016176,2]
[395119121,1764456642357,-195.0,0.00016176,2]
[395119122,1764456642367,-300.0,0.00016176,2]
[395119123,1764456642377,-193.0,0.00016176,2]
[395119124,1764456642387,-13050.60776686,0.00016184,2]
[395119125,1764456642396,-664.0,0.00016203,2]
[395119126,1764456642405,-500.0,0.00016203,2]
[395119127,1764456642417,-150.0,0.00016231,2]
[395119128,1764456642427,-150.0,0.00016258,2]
[395119129,1764456642436,-150.0,0.00016279,2]
[395119130,1764456642446,-1374.0,0.000163,2]
[395119131,1764456642455,-150.0,0.00016307,2]
[395119132,1764456642465,-150.0,0.00016307,2]
[395119133,1764456642475,-9389.0,0.00016308,2]
[395119134,1764456642484,-664.0,0.0001634,2]
[395119135,1764456642493,-500.0,0.0001634,2]
[395119136,1764456642502,-236.25863551,0.00016343,2]
[395119137,1764456642511,-150.0,0.00016349,2]
[395119138,1764456642521,-314.87827472,0.00016364,2]
[395119139,1764456642530,-998.25,0.00016393,2]
[395119140,1764456642540,-150.0,0.0001642,2]
[395119141,1764456642550,-150.0,0.0001642,2]
[395119142,1764456642559,-150.0,0.0001642,2]
[395119143,1764456642569,-150.0,0.0001642,2]
[395119144,1764456642578,-13050.60776686,0.00016422,2]
[395119145,1764456642588,-476.6,0.00016438,2]
[395119146,1764456642597,-150.0,0.00016438,2]
[395119147,1764456642607,-150.0,0.00016438,2]
[395119148,1764456642619,-500.0,0.00016438,2]
[395119149,1764456642628,-416.08725444,0.00016438,2]
[395119150,1764456642639,-500.0,0.00016438,2]
[395119151,1764456642649,-500.0,0.00016438,2]
[395119152,1764456642660,-500.0,0.00016438,2]
[395119153,1764456642670,-500.0,0.00016438,2]
[395119154,1764456642679,-500.0,0.00016438,2]
[395119155,1764456642689,-500.0,0.00016438,2]
[395119156,1764456642699,-500.0,0.00016438,2]
[395119157,1764456642708,-559.75340996,0.00016438,2]
[395119158,1764456642717,-500.0,0.00016438,2]
[395119159,1764456642727,-500.0,0.00016438,2]
[395119160,1764456642736,-500.0,0.00016438,2]
[395119161,1764456642745,-500.0,0.00016438,2]
[395119162,1764456642754,-10532.16,0.00016438,2]
[395119163,1764456642763,-800.0,0.00016438,2]
[395119164,1764456642773,-166.66,0.0001646,2]
[395119165,1764456642783,-150.0,0.00016477,2]
[395119166,1764456642793,-664.0,0.00016477,2]
[395119167,1764456642803,-500.0,0.00016477,2]
[395119168,1764456642812,-150.0,0.00016501,2]
[395119169,1764456642821,-378.0,0.00016519,2]
[395119170,1764456642830,-1000.0,0.00016521,2]
[395119171,1764456642839,-415.8000054,0.00016521,2]
[395119172,1764456642848,-500.79206791,0.00016521,2]
[395119173,1764456642857,-500.0,0.00016521,2]
[395119174,1764456642866,-1000.0,0.00016521,2]
[395119175,1764456642875,-1000.0,0.00016521,2]
[395119176,1764456642885,-1000.0,0.00016521,2]
[395119177,1764456642894,-1000.0,0.00016521,2]
[395119178,1764456642903,-1000.0,0.00016521,2]
[395119179,1764456642912,-1000.0,0.00016521,2]
[395119180,1764456642921,-1000.0,0.00016521,2]
[395119181,1764456642931,-500.0,0.00016521,2]
[395119182,1764456642940,-1000.0,0.00016521,2]
[395119184,1764456642948,-494.11980425,0.00016521,2]
[395119186,1764456642958,-1000.0,0.00016521,2]
[395119187,1764456642967,-1000.0,0.00016521,2]
[395119188,1764456642976,-457.41200441,0.00016521,2]
[395119189,1764456642985,-500.0,0.00016521,2]
[395119190,1764456642994,-427.45964135,0.00016542,2]
[395119191,1764456643003,-150.0,0.00016562,2]
[395119192,1764456643013,-150.0,0.00016562,2]
[395119193,1764456643022,-1511.0,0.00016566,2]
[395119194,1764456643030,-150.0,0.00016575,2]
[395119195,1764456643039,-150.0,0.00016575,2]
[395119196,1764456643048,-150.0,0.00016609,2]
[395119197,1764456643057,-664.0,0.00016614,2]
[395119198,1764456643066,-500.0,0.00016614,2]
[395119199,1764456643075,-378.0,0.00016643,2]
[395119201,1764456643084,-150.0,0.00016647,2]
[395119203,1764456643094,-150.0,0.00016647,2]
[395119204,1764456643103,-371.99662499,0.0001666,2]
[395119205,1764456643112,-13050.60776686,0.00016661,2]
[395119206,1764456643121,-998.25,0.00016667,2]
[395119207,1764456643130,-574.12855637,0.00016697,2]
[395119208,1764456643139,-1000.0,0.00016697,2]
[395119209,1764456643148,-640.33348044,0.00016697,2]
[395119211,1764456643157,-150.0,0.00016703,2]
[395119214,1764456643442,-150.0,0.00016703,2]
[395119215,1764456643452,-178.73243855,0.00016712,2]
[395119216,1764456643462,-150.0,0.00016712,2]
[395119217,1764456643471,-378.0,0.00016737,2]
[395119218,1764456643481,-150.0,0.00016744,2]
[395119219,1764456643490,-664.0,0.00016751,2]
[395119220,1764456643500,-500.0,0.00016751,2]
[395119221,1764456643510,-150.0,0.00016774,2]
[395119222,1764456643519,-166.66,0.00016779,2]
[395119223,1764456643529,-150.0,0.00016798,2]
[395119224,1764456643538,-150.0,0.00016816,2]
[395119225,1764456643548,-168.0,0.00016826,2]
[395119226,1764456643557,-1600.0,0.00016829,2]
[395119227,1764456643567,-1060.44281,0.0001683,2]
[395119228,1764456643577,-150.0,0.00016845,2]
[395119229,1764456643587,-150.0,0.00016849,2]
[395119230,1764456643597,-264.26,0.00016858,2]
[395119231,1764456643607,-2000.0,0.00016863,2]
[395119232,1764456643617,-500.0,0.00016863,2]
[395119233,1764456643626,-200.0,0.00016863,2]
[395119234,1764456643636,-500.0,0.00016864,2]
[395119235,1764456643645,-200.0,0.00016864,2]
[395119236,1764456643655,-2000.0,0.00016864,2]
[395119237,1764456643664,-2000.0,0.00016864,2]
[395119238,1764456643673,-500.0,0.00016864,2]
[395119239,1764456643682,-500.0,0.00016864,2]
[395119240,1764456643692,-500.0,0.00016864,2]
[395119241,1764456643702,-200.0,0.00016864,2]
[395119242,1764456643711,-200.0,0.00016864,2]
[395119243,1764456643720,-200.0,0.00016864,2]
[395119244,1764456643730,-205.38077461,0.00016887,2]
[395119245,1764456643739,-664.0,0.00016888,2]
[395119246,1764456643749,-500.0,0.00016888,2]
[395119247,1764456643758,-314.87827472,0.00016898,2]
[395119248,1764456643767,-500.0,0.00016899,2]
[395119249,1764456643777,-500.0,0.00016899,3]
[395119250,1764456643786,-500.0,0.00016899,4]
[395119251,1764456643796,-359.81952588,0.00016899,2]
[395119252,1764456643805,-10000.0,0.000169,2]
[395119253,1764456643814,-794.17025836,0.000169,2]
[395119254,1764456643823,-13050.60776686,0.000169,2]
[395119255,1764456643832,-399.70042951,0.000169,2]
[395119256,1764456643841,-1321.15353422,0.000169,2]
[395119257,1764456643851,-191.37909284,0.000169,2]
[395119258,1764456643860,-630.51395534,0.000169,2]
[395119259,1764456643869,-500.0,0.000169,2]
[395119260,1764456643878,-500.0,0.000169,2]
[395119261,1764456643887,-500.0,0.000169,2]
[395119262,1764456643896,-500.0,0.000169,2]
[395119263,1764456643906,-500.0,0.000169,2]
[395119264,1764456643916,-500.0,0.000169,2]
[395119265,1764456643926,-500.0,0.000169,2]
[395119266,1764456643935,-500.0,0.000169,2]
[395119267,1764456643945,-500.0,0.000169,2]
[395119268,1764456643954,-500.0,0.000169,2]
[395119269,1764456643963,-500.0,0.000169,2]
[395119270,1764456643973,-500.0,0.000169,2]
[395119271,1764456643983,-500.0,0.000169,2]
[395119272,1764456643992,-500.0,0.000169,2]
[395119273,1764456644001,-500.0,0.000169,2]
[395119274,1764456644011,-500.0,0.000169,2]
[395119275,1764456644020,-192.37994214,0.000169,2]
[395119276,1764456644030,-1226.0,0.00016932,2]
[395119277,1764456644039,-182.96,0.00016935,2]
[395119278,1764456644048,-998.25,0.00016941,2]
[395119279,1764456644058,-151.0,0.0001697,2]
[395119280,1764456644067,-161.98179923,0.00016973,2]
[395119281,1764456644076,-501.68270719,0.00016973,2]
[395119282,1764456644085,-500.0,0.00016973,2]
[395119283,1764456644095,-366.12430531,0.00016973,2]
[395119284,1764456644105,-507.05784267,0.00016973,2]
[395119285,1764456644116,-500.0,0.00016973,2]
[395119286,1764456644126,-500.0,0.00016973,2]
[395119287,1764456644135,-500.0,0.00016973,2]
[395119288,1764456644145,-500.0,0.00016973,2]
[395119289,1764456644154,-503.08797881,0.00016973,2]
[395119290,1764456644164,-500.0,0.00016973,2]
[395119291,1764456644174,-176.33851761,0.00016973,2]
[395119292,1764456644183,-500.0,0.00016973,2]
[395119293,1764456644193,-500.0,0.00016973,2]
[395119294,1764456644203,-500.0,0.00016973,2]
[395119295,1764456644213,-500.0,0.00016973,2]
[395119296,1764456644223,-500.0,0.00016973,2]
[395119297,1764456644232,-500.0,0.00016973,2]
[395119298,1764456644242,-500.0,0.00016973,2]
[395119299,1764456644252,-500.0,0.00016973,2]
[395119300,1764456644262,-500.0,0.00016973,2]
[395119301,1764456644271,-500.0,0.00016973,2]
[395119302,1764456644280,-500.0,0.00016973,2]
[395119303,1764456644290,-167.29393494,0.00016973,2]
[395119304,1764456644299,-500.0,0.00016973,2]
[395119305,1764456644309,-500.0,0.00016973,2]
[395119306,1764456644318,-415.30385931,0.00016973,2]
[395119307,1764456644328,-500.0,0.00016973,2]
[395119308,1764456644341,-500.0,0.00016973,2]
[395119309,1764456644352,-500.0,0.00016973,2]
[395119310,1764456644362,-172.25490603,0.00016973,2]
[395119311,1764456644371,-500.0,0.00016973,2]
[395119312,1764456644383,-500.0,0.00016973,2]
[395119313,1764456644393,-500.0,0.00016973,2]
[395119314,1764456644403,-500.0,0.00016973,2]
[395119315,1764456644412,-500.0,0.00016973,2]
[395119316,1764456644423,-500.0,0.00016973,2]
[395119317,1764456644433,-500.0,0.00016973,2]
[395119318,1764456644442,-215.63945955,0.00016973,2]
[395119319,1764456644451,-500.0,0.00016973,2]
[395119320,1764456644460,-500.0,0.00016973,2]
[395119321,1764456644469,-500.0,0.00016973,2]
[395119322,1764456644478,-378.0,0.00016982,2]
[395119323,1764456644488,-500.0,0.00016983,2]
[395119324,1764456644498,-200.0,0.00016986,2]
[395119325,1764456644508,-294.18459324,0.00016986,2]
[395119326,1764456644517,-290.89220526,0.00016986,2]
[395119327,1764456644527,-150.0,0.00016986,2]
[395119328,1764456644537,-159.50313578,0.00016986,2]
[395119329,1764456644547,-159.34174515,0.00016986,2]
[395119330,1764456644556,-150.00000001,0.00016986,2]
[395119331,1764456644566,-150.0,0.00016986,2]
[395119332,1764456644576,-150.0,0.00016986,2]
[395119333,1764456644585,-150.0,0.00016986,2]
[395119334,1764456644595,-239.8861884,0.00016986,2]
[395119335,1764456644605,-222.0,0.00016989,2]
[395119336,1764456644615,-500.0,0.00016989,2]
[395119337,1764456644624,-500.0,0.00016989,3]
[395119338,1764456644633,-500.0,0.00016989,4]
[395119339,1764456644643,-13393.3449753,0.00016992,2]
[395119340,1764456644653,-977.5079,0.00016992,2]
[395119341,1764456644663,-105985.0540059,0.00016998,2]
[395119342,1764456644672,-4853.9790939,0.00016998,2]
[395119343,1764456644681,-901.1751267,0.00016998,2]
[395119344,1764456644691,-291.15248422,0.00016999,2]
[395119345,1764456644701,-1040.24545121,0.00016999,5]
[395119346,1764456644710,-1040.24545121,0.00016999,5]
[395119347,1764456644720,-1040.24545121,0.00016999,5]
[395119348,1764456644730,-1040.24545122,0.00016999,5]
[395119349,1764456644739,-1065.22651441,0.00016999,5]
[395119350,1764456644749,-297.64259009,0.00016999,2]
[395119351,1764456644759,-500.0,0.00016999,5]
[395119352,1764456644768,-300.0,0.00016999,2]
[395119353,1764456644778,-300.0,0.00016999,2]
[395119354,1764456644787,-500.0,0.00016999,5]
[395119355,1764456644797,-4427701.25298869,0.00017,2]
[395119356,1764456644807,-46359.03415709,0.00017,2]
[395119357,1764456644816,-151.0,0.00017,2]
[395119358,1764456644826,-326.73123018,0.00017,2]
[395119359,1764456644836,-2000.0,0.00017,2]
[395119360,1764456644846,-200.0,0.00017,2]
[395119361,1764456644855,-250.0,0.00017,2]
[395119362,1764456644865,-151.0,0.00017,2]
[395119363,1764456644874,-156.299623,0.00017,2]
[395119364,1764456644883,-151.0,0.00017,2]
[395119365,1764456644894,-151.0,0.00017,2]
[395119366,1764456644903,-151.0,0.00017,2]
[395119367,1764456644913,-151.0,0.00017,2]
[395119368,1764456644922,-151.0,0.00017,2]
[395119369,1764456644935,-151.0,0.00017,2]
[395119370,1764456644944,-225.0,0.00017,2]
[395119371,1764456644954,-151.0,0.00017,2]
[395119372,1764456644965,-151.0,0.00017,2]
[395119373,1764456644975,-151.0,0.00017,2]
[395119374,1764456644984,-299.868642,0.00017,2]
[395119375,1764456644994,-151.0,0.00017,2]
[395119376,1764456645003,-151.0,0.00017,2]
[395119377,1764456645013,-151.0,0.00017,2]
[395119378,1764456645022,-151.0,0.00017,2]
[395119379,1764456645031,-151.0,0.00017,2]
[395119380,1764456645040,-151.0,0.00017,2]
[395119381,1764456645050,-151.0,0.00017,2]
[395119382,1764456645059,-151.0,0.00017,2]
[395119383,1764456645068,-245.216729,0.00017,2]
[395119384,1764456645078,-151.0,0.00017,2]
[395119385,1764456645087,-151.0,0.00017,2]
[395119386,1764456645097,-151.0,0.00017,2]
[395119387,1764456645106,-151.0,0.00017,2]
[395119388,1764456645116,-151.0,0.00017,2]
[395119389,1764456645125,-151.0,0.00017,2]
[395119390,1764456645135,-151.0,0.00017,2]
[395119391,1764456645144,-494.402909,0.00017,2]
[395119392,1764456645153,-151.0,0.00017,2]
[395119393,1764456645163,-494.402909,0.00017,2]
[395119394,1764456645171,-364.126776,0.00017,2]
[395119395,1764456645180,-151.0,0.00017,2]
[395119396,1764456645189,-364.126776,0.00017,2]
[395119397,1764456645199,-151.0,0.00017,2]
[395119398,1764456645208,-151.0,0.00017,2]
[395119399,1764456645218,-364.126776,0.00017,2]
[395119400,1764456645227,-151.0,0.00017,2]
[395119401,1764456645236,-151.0,0.00017,2]
[395119402,1764456645246,-364.126776,0.00017,2]
[395119403,1764456645255,-494.402909,0.00017,2]
[395119404,1764456645265,-277.659784,0.00017,2]
[395119405,1764456645274,-162.35974,0.00017,2]
[395119406,1764456645283,-494.402909,0.00017,2]
[395119407,1764456645292,-151.0,0.00017,2]
[395119408,1764456645302,-151.0,0.00017,2]
[395119409,1764456645312,-151.0,0.00017,2]
[395119410,1764456645321,-151.0,0.00017,2]
[395119411,1764456645330,-215.076484,0.00017,2]
[395119412,1764456645342,-151.0,0.00017,2]
[395119413,1764456645351,-215.076484,0.00017,2]
[395119414,1764456645361,-215.076484,0.00017,2]
[395119415,1764456645370,-215.076484,0.00017,2]
[395119416,1764456645386,-151.0,0.00017,2]
[395119417,1764456645395,-151.0,0.00017,2]
[395119418,1764456645404,-151.0,0.00017,2]
[395119419,1764456645414,-151.0,0.00017,2]
[395119420,1764456645425,-151.0,0.00017,2]
[395119421,1764456645435,-151.0,0.00017,2]
[395119422,1764456645445,-151.0,0.00017,2]
[395119423,1764456645454,-151.0,0.00017,2]
[395119424,1764456645463,-151.0,0.00017,2]
[395119425,1764456645472,-151.0,0.00017,2]
[395119426,1764456645481,-209.38623,0.00017,2]
[395119427,1764456645491,-151.0,0.00017,2]
[395119428,1764456645500,-217.499752,0.00017,2]
[395119429,1764456645509,-151.0,0.00017,2]
[395119430,1764456645518,-151.0,0.00017,2]
[395119431,1764456645528,-151.0,0.00017,2]
[395119432,1764456645538,-151.0,0.00017,2]
[395119433,1764456645547,-160.610429,0.00017,2]
[395119434,1764456645557,-266.029318,0.00017,2]
[395119435,1764456645566,-153.63376,0.00017,2]
[395119436,1764456645576,-151.0,0.00017,2]
[395119437,1764456645586,-151.0,0.00017,2]
[395119438,1764456645595,-151.0,0.00017,2]
[395119439,1764456645604,-191.180654,0.00017,2]
[395119440,1764456645615,-151.0,0.00017,2]
[395119441,1764456645624,-151.0,0.00017,2]
[395119442,1764456645633,-151.0,0.00017,2]
[395119443,1764456645643,-151.0,0.00017,2]
[395119444,1764456645653,-283.726001,0.00017,2]
[395119445,1764456645662,-151.0,0.00017,2]
[395119446,1764456645672,-283.726001,0.00017,2]
[395119447,1764456645681,-151.0,0.00017,2]
[395119448,1764456645691,-283.726001,0.00017,2]
[395119449,1764456645700,-283.726001,0.00017,2]
[395119450,1764456645710,-151.0,0.00017,2]
[395119451,1764456645719,-151.0,0.00017,2]
[395119452,1764456645728,-151.0,0.00017,2]
[395119453,1764456645738,-151.0,0.00017,2]
[395119454,1764456645855,-151.0,0.00017,2]
[395119455,1764456645865,-151.0,0.00017,2]
[395119457,1764456645874,-151.0,0.00017,2]
[395119459,1764456645883,-151.0,0.00017,2]
[395119460,1764456645891,-151.0,0.00017,2]
[395119461,1764456645901,-151.0,0.00017,2]
[395119462,1764456645910,-151.0,0.00017,2]
[395119463,1764456645919,-151.0,0.00017,2]
[395119464,1764456645928,-151.0,0.00017,2]
[395119465,1764456645937,-151.0,0.00017,2]
[395119466,1764456645947,-200.0,0.00017,2]
[395119467,1764456645956,-151.0,0.00017,2]
[395119468,1764456645965,-151.0,0.00017,2]
[395119469,1764456645975,-151.0,0.00017,2]
[395119470,1764456645984,-151.0,0.00017,2]
[395119472,1764456645993,-151.0,0.00017,2]
[395119473,1764456646002,-151.0,0.00017,2]
[395119474,1764456646011,-177.04259993,0.00017,2]
[395119475,1764456646020,-664.0,0.00017025,2]
[395119476,1764456646029,-500.0,0.00017025,2]
[395119477,1764456646038,-168.0,0.00017026,2]
[395119478,1764456646047,-176.65372314,0.00017027,2]
[395119479,1764456646056,-433.0,0.0001703,2]
[395119480,1764456646066,-168.0,0.00017047,2]
[395119481,1764456646075,-296.87113101,0.00017067,2]
[395119482,1764456646084,-684.79730938,0.00017068,2]
[395119483,1764456646093,-1500.0,0.00017068,2]
[395119484,1764456646104,-1009.84757523,0.00017068,2]
[395119485,1764456646114,-1500.0,0.00017068,2]
[395119486,1764456646124,-1500.0,0.00017068,2]
[395119487,1764456646133,-1500.0,0.00017068,2]
[395119488,1764456646144,-1500.0,0.00017068,2]
[395119489,1764456646154,-1500.0,0.00017068,2]
[395119490,1764456646163,-168.0,0.00017081,2]
[395119491,1764456646172,-168.0,0.00017101,2]
[395119492,1764456646182,-1000.0,0.00017112,2]
[395119493,1764456646191,-168.0,0.00017144,2]
[395119494,1764456646200,-168.0,0.00017149,2]
[395119495,1764456646210,-6904.12823386,0.00017159,2]
[395119496,1764456646219,-664.0,0.00017162,2]
[395119497,1764456646228,-500.0,0.00017162,2]
[395119498,1764456646237,-200.0,0.0001717,2]
[395119499,1764456646246,-998.25,0.00017215,2]
[395119500,1764456646255,-212.00770439,0.00017245,2]
[395119501,1764456646265,-1000.0,0.00017245,2]
[395119502,1764456646274,-192.19,0.00017262,2]
[395119503,1764456646283,-1511.0,0.00017277,2]
[395119504,1764456646292,-664.0,0.00017299,2]
[395119505,1764456646301,-500.0,0.00017299,2]
[395119506,1764456646310,-1511.0,0.00017304,2]
[395119507,1764456646319,-664.0,0.00017436,2]
[395119508,1764456646328,-500.0,0.00017436,2]